bitfinex/quotes_BTCUSD_20251113
["timestamp","ask_amount","ask_price","bid_price","bid_amount"]
[1763060067418,0.11008,98482.0,98481.0,0.0004662]
[1763060068060,0.03462802,98482.0,98481.0,0.0004662]
[1763060068259,0.323,98479.0,98436.0,0.00861922]
[1763060068432,0.2,98480.0,98436.0,0.00861922]
[1763060068433,0.09816915,98459.0,98436.0,0.0001398]
[1763060068820,0.04602,98437.0,98436.0,0.0001398]
[1763060069020,0.18927915,98459.0,98436.0,0.0001398]
[1763060069335,0.04602,98445.0,98436.0,0.0001398]
[1763060069534,0.09816915,98444.0,98436.0,0.0001398]
[1763060071811,0.19648915,98459.0,98436.0,0.0001398]
[1763060071812,0.09816915,98459.0,98436.0,0.0001398]
[1763060072220,0.09816915,98458.0,98436.0,0.0001398]
[1763060072645,0.09740772,98458.0,98436.0,0.0001398]
[1763060073648,0.09816915,98461.0,98436.0,0.0001398]
[1763060073833,0.2,98460.0,98436.0,0.0001398]
[1763060074031,0.09816915,98446.0,98436.0,0.0001398]
[1763060074797,0.09832,98459.0,98436.0,0.0001398]
[1763060074933,0.09816915,98461.0,98436.0,0.0001398]
[1763060075136,0.09816915,98461.0,98436.0,0.20331543]
[1763060075353,0.09816915,98461.0,98438.0,0.20317334]
[1763060075538,0.09816915,98461.0,98436.0,0.0001398]
[1763060076147,0.09816915,98461.0,98438.0,0.2031726]
[1763060076409,0.09816915,98461.0,98439.0,0.20317045]
[1763060076578,0.09816915,98461.0,98436.0,0.0001398]
[1763060077148,0.09816915,98461.0,98436.0,0.2033166]
[1763060077373,0.09816915,98461.0,98436.0,0.0001398]
[1763060077984,0.09816915,98461.0,98440.0,0.20316798]
[1763060078303,0.09816915,98461.0,98436.0,0.0001398]
[1763060078721,0.09816915,98446.0,98436.0,0.0001398]
[1763060078930,0.19648915,98461.0,98436.0,0.0001398]
[1763060079143,0.09816915,98446.0,98436.0,0.0001398]
[1763060079340,0.09832,98460.0,98436.0,0.0001398]
[1763060080107,0.09816915,98446.0,98436.0,0.0001398]
[1763060080311,0.09832,98460.0,98436.0,0.0001398]
[1763060080740,0.04674,98437.0,98436.0,0.0001398]
[1763060081108,0.09816915,98446.0,98436.0,0.0001398]
[1763060081109,0.04674,98445.0,98436.0,0.0001398]
[1763060082562,0.04674,98445.0,98419.0,0.20321147]
[1763060082800,0.04674,98445.0,98420.0,0.88750179]
[1763060082947,0.04674,98453.0,98430.0,0.88750179]
[1763060083755,0.09816915,98446.0,98430.0,0.88750179]
[1763060083956,0.04674,98453.0,98421.0,0.36641874]
[1763060084167,0.09816915,98457.0,98430.0,0.88750179]
[1763060084378,0.09816915,98457.0,98431.0,0.34888628]
[1763060084580,0.09816915,98457.0,98433.0,0.20318319]
[1763060084781,0.09816915,98457.0,98431.0,0.1457]
[1763060085428,0.09816915,98457.0,98431.0,0.04341874]
[1763060085429,0.09916915,98457.0,98431.0,0.04341874]
[1763060085847,0.10016915,98457.0,98431.0,0.04341874]
[1763060086056,0.09916915,98457.0,98440.0,0.88750179]
[1763060086473,0.09816915,98457.0,98431.0,0.04341874]
[1763060087415,0.09916915,98457.0,98431.0,0.04341874]
[1763060087636,0.09816915,98457.0,98431.0,0.14158789]
[1763060088510,0.09816915,98457.0,98432.0,0.04341874]
[1763060088732,0.09816915,98457.0,98435.0,0.20317887]
[1763060088944,0.323,98481.0,98437.0,0.04341874]
[1763060089149,0.323,98481.0,98440.0,0.89766026]
[1763060089414,0.323,98481.0,98450.0,0.88750179]
[1763060089415,0.09832,98481.0,98450.0,0.88750179]
[1763060089642,0.03462802,98482.0,98442.0,0.04341874]
[1763060089889,0.03462802,98482.0,98433.0,0.1457]
[1763060089890,0.09816915,98464.0,98440.0,0.88750179]
[1763060090552,0.09832,98463.0,98433.0,0.1457]
[1763060090759,0.09816915,98449.0,98440.0,0.00013955]
[1763060091805,0.04674,98450.0,98440.0,0.00013955]
[1763060092007,0.09816915,98464.0,98440.0,0.00013955]
[1763060092140,0.01593453,98463.0,98440.0,0.00013955]
[1763060093650,0.09816915,98449.0,98440.0,0.00013955]
[1763060094483,0.19648915,98449.0,98440.0,0.00013955]
[1763060096117,0.01593453,98463.0,98440.0,0.00013955]
[1763060096274,0.01861367,98462.0,98440.0,0.00013955]
[1763060096501,0.01861367,98461.0,98440.0,0.00013955]
[1763060096705,0.01593453,98463.0,98440.0,0.00013955]
[1763060096706,0.01593453,98463.0,98450.0,0.88750179]
[1763060097105,0.09832,98484.0,98450.0,0.88750179]
[1763060097305,0.01862809,98478.0,98450.0,0.88750179]
[1763060097677,0.014,98490.0,98450.0,0.88750179]
[1763060097678,0.01862809,98477.0,98450.0,0.88750179]
[1763060097886,0.01862809,98476.0,98450.0,0.88750179]
[1763060098106,0.01862809,98475.0,98450.0,0.88750179]
[1763060098347,0.01862809,98474.0,98450.0,0.88750179]
[1763060098572,0.01862809,98473.0,98450.0,0.88750179]
[1763060098775,0.01862809,98472.0,98450.0,0.88750179]
[1763060098900,0.01862809,98471.0,98450.0,0.88750179]
[1763060099106,0.01862809,98470.0,98450.0,0.88750179]
[1763060099405,0.01862809,98469.0,98450.0,0.88750179]
[1763060099629,0.01862809,98468.0,98450.0,0.88750179]
[1763060099872,0.01862809,98467.0,98450.0,0.88750179]
[1763060100078,0.001,98471.0,98450.0,0.88750179]
[1763060100313,0.001,98471.0,98440.0,0.3277918]
[1763060100314,0.001,98471.0,98460.0,0.88750179]
[1763060100526,0.001,98471.0,98461.0,0.323]
[1763060100716,0.001,98471.0,98451.0,0.07247409]
[1763060100717,0.09067,98470.0,98451.0,0.07247409]
[1763060100925,0.01863983,98469.0,98450.0,0.88750179]
[1763060101134,0.01863983,98469.0,98440.0,0.00013955]
[1763060101135,0.0635,98448.0,98440.0,0.00013955]
[1763060101431,0.04792,98452.0,98440.0,0.00013955]
[1763060101432,0.0635,98441.0,98440.0,0.00013955]
[1763060101597,0.04792,98452.0,98440.0,0.00013955]
[1763060101780,0.01863931,98451.0,98440.0,0.00013955]
[1763060101957,1.09750178,98480.0,98440.0,0.00013955]
[1763060101958,0.01863931,98450.0,98440.0,0.88764134]
[1763060102163,0.04792,98459.0,98440.0,0.88764134]
[1763060102385,0.002,98448.0,98440.0,0.88764134]
[1763060102585,0.002,98448.0,98447.0,0.323]
[1763060102833,0.001,98448.0,98447.0,0.323]
[1763060103281,0.001,98448.0,98447.0,0.39811065]
[1763060103483,0.09816915,98479.0,98447.0,0.39811065]
[1763060103687,0.00999999,98530.0,98470.0,0.323]
[1763060103688,0.09816915,98478.0,98470.0,0.323]
[1763060103854,0.09067,98517.0,98480.0,0.01944549]
[1763060104065,0.04792,98527.0,98492.0,0.88750179]
[1763060104274,0.04792,98541.0,98491.0,0.20306423]
[1763060104275,0.09816915,98533.0,98491.0,0.20306423]
[1763060104449,0.09816915,98533.0,98490.0,0.02768369]
[1763060104450,0.09067,98525.0,98490.0,0.02873019]
[1763060104648,0.09067,98525.0,98490.0,0.96270146]
[1763060105012,0.09863544,98502.0,98490.0,0.88750179]
[1763060105552,0.09963544,98502.0,98490.0,0.88750179]
[1763060105762,0.00146629,98502.0,98476.0,0.010811]
[1763060105969,0.00046629,98502.0,98488.0,0.09816915]
[1763060106379,0.00046629,98502.0,98481.0,0.323]
[1763060106702,0.00046629,98502.0,98461.0,0.07311494]
[1763060106703,0.19125915,98501.0,98461.0,0.07311494]
[1763060106902,0.19125915,98501.0,98471.0,0.323]
[1763060107105,0.01593147,98492.0,98471.0,0.323]
[1763060107642,0.04853,98491.0,98471.0,0.323]
[1763060108038,0.09816915,98486.0,98471.0,0.323]
[1763060108265,0.09816915,98486.0,98470.0,0.88750179]
[1763060108686,0.09816915,98486.0,98461.0,0.323]
[1763060108896,0.09816915,98471.0,98456.0,0.07589587]
[1763060109294,0.14669915,98471.0,98456.0,0.07589587]
[1763060109751,0.14669915,98471.0,98440.0,0.90621363]
[1763060109955,0.14669915,98471.0,98430.0,0.10327444]
[1763060109956,0.09816915,98456.0,98430.0,0.02]
[1763060110134,0.09255185,98470.0,98440.0,0.00013955]
[1763060110342,0.09816915,98455.0,98440.0,0.00013955]
[1763060111528,0.09816915,98455.0,98421.0,0.323]
[1763060111751,0.09816915,98454.0,98440.0,0.88750179]
[1763060111920,0.00013976,98455.0,98441.0,0.20316737]
[1763060112130,0.00013976,98455.0,98444.0,0.323]
[1763060112546,0.00013976,98455.0,98430.0,0.88750179]
[1763060112745,0.00013976,98455.0,98433.0,0.09816915]
[1763060112952,0.00013976,98455.0,98435.0,0.323]
[1763060113393,0.00013976,98455.0,98450.0,0.20314677]
[1763060113639,0.00013976,98455.0,98452.0,0.20314287]
[1763060113853,0.00013976,98455.0,98454.0,0.323]
[1763060114286,0.00013976,98455.0,98454.0,0.44215621]
[1763060114718,0.04853,98516.0,98454.0,0.44215621]
[1763060114719,0.04853,98516.0,98490.0,0.88750179]
[1763060114925,0.00046658,98516.0,98491.0,0.20306423]
[1763060115131,0.00046658,98516.0,98490.0,0.88750179]
[1763060115359,0.04853,98515.0,98481.0,0.323]
[1763060115815,0.04853,98515.0,98490.0,0.88750179]
[1763060116025,0.04853,98515.0,98490.0,1.09056636]
[1763060116228,0.04853,98515.0,98490.0,0.88750179]
[1763060116435,0.00046658,98516.0,98491.0,0.09816915]
[1763060116614,0.00046658,98516.0,98500.0,0.88750179]
[1763060117319,0.00046658,98516.0,98506.0,0.09816915]
[1763060117899,0.00046658,98516.0,98503.0,0.323]
[1763060118498,0.00046658,98516.0,98500.0,0.82968538]
[1763060118704,0.04853,98515.0,98500.0,0.82968538]
[1763060118937,0.04853,98515.0,98491.0,0.09816915]
[1763060119557,0.00046658,98516.0,98491.0,0.09816915]
[1763060119759,0.00046658,98516.0,98498.0,0.20304895]
[1763060119964,0.00046658,98516.0,98501.0,0.323]
[1763060120340,0.00046658,98516.0,98506.0,0.323]
[1763060120542,0.00046658,98516.0,98502.0,0.20303992]
[1763060120767,0.00046658,98516.0,98503.0,0.323]
[1763060121180,0.00046658,98516.0,98507.0,0.20303125]
[1763060121382,0.00046658,98516.0,98515.0,0.20301476]
[1763060121604,0.00046658,98516.0,98512.0,0.323]
[1763060122592,0.00046658,98516.0,98508.0,0.323]
[1763060122789,0.00046658,98516.0,98515.0,0.20301476]
[1763060123125,0.00046658,98516.0,98515.0,0.52601476]
[1763060123266,0.00046658,98516.0,98515.0,0.5694335]
[1763060123678,0.00046658,98516.0,98514.0,0.07563044]
[1763060123679,0.0002,98550.0,98530.0,0.02]
[1763060123884,0.00033993,98550.0,98540.0,0.88750179]
[1763060124918,0.00033993,98550.0,98531.0,0.323]
[1763060125261,0.00033993,98550.0,98530.0,0.0193419]
[1763060125473,0.19125915,98549.0,98510.0,0.90379808]
[1763060125674,0.09816915,98549.0,98510.0,0.02644754]
[1763060125930,0.09816915,98549.0,98520.0,0.88750179]
[1763060126146,0.09816915,98549.0,98525.0,0.323]
[1763060126365,0.09816915,98549.0,98520.0,0.88750179]
[1763060126579,0.09816915,98549.0,98530.0,0.001]
[1763060126813,0.09816915,98549.0,98520.0,0.88750179]
[1763060127016,0.09816915,98549.0,98510.0,0.10703385]
[1763060127017,0.09816915,98549.0,98511.0,0.323]
[1763060127224,0.09816915,98534.0,98511.0,0.323]
[1763060127429,0.09816915,98534.0,98483.0,0.20307918]
[1763060127430,0.04853,98533.0,98490.0,0.01]
[1763060127629,0.04853,98533.0,98506.0,0.09816915]
[1763060127744,0.04853,98539.0,98510.0,0.88750179]
[1763060127949,0.04853,98548.0,98515.0,0.323]
[1763060128364,0.09816915,98534.0,98516.0,0.09799]
[1763060131558,0.09816915,98534.0,98511.0,0.04721]
[1763060131800,0.09916915,98534.0,98511.0,0.04721]
[1763060131954,0.09816915,98519.0,98511.0,0.04721]
[1763060132152,0.09816915,98519.0,98496.0,0.09464]
[1763060132356,0.09816915,98519.0,98480.0,0.60398358]
[1763060132357,0.04942,98518.0,98480.0,0.60398358]
[1763060132614,0.04942,98518.0,98484.0,0.09464]
[1763060132753,0.09816915,98504.0,98484.0,0.09464]
[1763060133223,0.09830898,98504.0,98484.0,0.09464]
[1763060133424,0.09830898,98504.0,98473.0,0.09464]
[1763060133841,0.09830898,98504.0,98474.0,0.323]
[1763060134040,0.09830898,98504.0,98473.0,0.09464]
[1763060134279,0.09830898,98504.0,98474.0,0.09464]
[1763060135254,0.09816915,98503.0,98478.0,0.20308958]
[1763060135432,0.09816915,98503.0,98480.0,0.60398358]
[1763060135835,0.09816915,98503.0,98502.0,0.02021]
[1763060136233,0.09816915,98503.0,98485.0,0.323]
[1763060136456,0.09816915,98503.0,98494.0,0.02021]
[1763060137290,0.09816915,98503.0,98480.0,0.09464]
[1763060137487,0.18839915,98502.0,98470.0,0.60398358]
[1763060137710,0.18839915,98502.0,98469.0,0.323]
[1763060137913,0.18839915,98502.0,98470.0,0.60398358]
[1763060138244,0.00013983,98504.0,98501.0,0.06219]
[1763060138451,0.00013983,98504.0,98490.0,0.60398358]
[1763060138592,0.001,98503.0,98487.0,0.09464]
[1763060138794,0.09816915,98501.0,98491.0,0.323]
[1763060138979,0.09816915,98501.0,98480.0,0.60398358]
[1763060139388,0.00013983,98504.0,98482.0,0.20308279]
[1763060139714,0.09816915,98501.0,98482.0,0.09464]
[1763060139921,0.09816915,98501.0,98480.0,0.60398358]
[1763060140243,0.09816915,98501.0,98483.0,0.29771969]
[1763060140449,0.09816915,98501.0,98483.0,0.09464]
[1763060140660,0.09816915,98501.0,98484.0,0.20307867]
[1763060141138,0.001,98501.0,98485.0,0.20307661]
[1763060141347,0.001,98501.0,98480.0,0.60398358]
[1763060141754,0.00013983,98504.0,98480.0,0.60398358]
[1763060141973,0.09816915,98501.0,98480.0,0.60398358]
[1763060142594,0.09816915,98501.0,98480.0,0.03862]
[1763060142801,0.09816915,98501.0,98480.0,0.64260358]
[1763060143012,0.09816915,98501.0,98478.0,0.09816915]
[1763060143219,0.09816915,98501.0,98480.0,0.60398358]
[1763060144056,0.09816915,98501.0,98478.0,0.03862]
[1763060144263,0.09816915,98501.0,98480.0,0.60398358]
[1763060144470,0.09816915,98501.0,98472.0,0.04721]
[1763060144471,0.09816915,98486.0,98472.0,0.04721]
[1763060144687,0.09816915,98501.0,98476.0,0.03862]
[1763060145102,0.09816915,98486.0,98473.0,0.1457]
[1763060145277,0.09023,98500.0,98473.0,0.1457]
[1763060145647,0.09023,98500.0,98472.0,0.04721]
[1763060145830,0.09816915,98486.0,98472.0,0.04721]
[1763060146719,0.09816915,98501.0,98472.0,0.04721]
[1763060146898,0.09816915,98501.0,98472.0,0.08583]
[1763060147277,0.00013983,98504.0,98472.0,0.08583]
[1763060147278,0.09916915,98500.0,98480.0,0.60398358]
[1763060147480,0.09916915,98500.0,98480.0,0.64260358]
[1763060147684,0.09916915,98500.0,98472.0,0.00983]
[1763060147883,0.09816915,98500.0,98476.0,0.09816915]
[1763060148891,0.09816915,98500.0,98476.0,0.30126341]
[1763060149091,0.001,98501.0,98480.0,0.60398358]
[1763060149391,0.09816915,98500.0,98480.0,0.60398358]
[1763060149589,0.09816915,98500.0,98480.0,0.80706998]
[1763060149822,0.09816915,98500.0,98481.0,0.20308415]
[1763060150184,0.00013983,98504.0,98480.0,0.60398358]
[1763060150827,0.00013983,98504.0,98476.0,0.24386915]
[1763060151005,0.09816915,98501.0,98480.0,0.60398358]
[1763060151393,0.00013983,98504.0,98484.0,0.20307745]
[1763060151576,0.00013983,98504.0,98480.0,0.60398358]
[1763060151896,0.00013983,98504.0,98476.0,0.1457]
[1763060152019,0.00013983,98504.0,98481.0,0.09816915]
[1763060152422,0.09816915,98501.0,98480.0,0.60398358]
[1763060152627,0.00013983,98504.0,98481.0,0.09816915]
[1763060152914,0.09816915,98501.0,98480.0,0.60398358]
[1763060153115,0.09816915,98501.0,98481.0,0.09816915]
[1763060153468,0.09816915,98501.0,98472.0,0.2129329]
[1763060153469,0.09023,98500.0,98472.0,0.00983]
[1763060154229,0.09023,98500.0,98473.0,0.1457]
[1763060154230,0.09816915,98486.0,98473.0,0.1457]
[1763060154830,0.09816915,98501.0,98474.0,0.0767]
[1763060154965,0.001,98500.0,98480.0,0.80706902]
[1763060155149,0.001,98500.0,98476.0,0.09816915]
[1763060155150,0.001,98500.0,98490.0,0.60398358]
[1763060155355,0.001,98500.0,98493.0,0.20306005]
[1763060155568,0.001,98500.0,98498.0,0.2030482]
[1763060155791,0.00013983,98504.0,98498.0,0.2030482]
[1763060155792,0.00013983,98504.0,98503.0,0.5260395]
[1763060156006,0.09023,98554.0,98503.0,0.07280783]
[1763060156259,0.09023,98554.0,98500.0,0.03608137]
[1763060156260,0.09816915,98540.0,98520.0,0.60398358]
[1763060156843,0.09816915,98540.0,98511.0,0.323]
[1763060156991,0.09816915,98540.0,98512.0,0.09816915]
[1763060157413,0.09916915,98540.0,98512.0,0.09816915]
[1763060157792,0.09816915,98540.0,98512.0,0.09816915]
[1763060158146,0.09023,98539.0,98511.0,0.323]
[1763060158513,0.09023,98539.0,98508.0,0.07720921]
[1763060158718,0.09023,98539.0,98504.0,0.323]
[1763060158884,0.09816915,98525.0,98500.0,0.0159704]
[1763060159287,0.09816915,98525.0,98497.0,0.07280783]
[1763060159521,0.09816915,98525.0,98493.0,0.07280783]
[1763060159729,0.09816915,98525.0,98493.0,0.39580783]
[1763060159930,0.09816915,98525.0,98493.0,0.52605884]
[1763060160142,0.09816915,98525.0,98493.0,0.323]
[1763060160523,0.09816915,98525.0,98497.0,0.001]
[1763060160725,0.0159255,98532.0,98500.0,0.61413586]
[1763060160936,0.09816915,98525.0,98495.0,0.07280783]
[1763060161158,0.60398358,98520.0,98490.0,0.07280783]
[1763060161367,0.80398358,98520.0,98493.0,0.001]
[1763060161666,0.29816915,98500.0,98493.0,0.001]
[1763060161870,0.11396,98494.0,98493.0,0.001]
[1763060162200,0.11396,98494.0,98461.0,0.17097698]
[1763060162201,0.14700915,98502.0,98480.0,0.60398358]
[1763060162445,0.09816915,98502.0,98470.0,0.60398358]
[1763060162656,0.19277915,98502.0,98470.0,0.60398358]
[1763060162844,0.19277915,98502.0,98470.0,0.61460553]
[1763060163470,0.19377915,98502.0,98470.0,0.61460553]
[1763060163715,0.09916915,98502.0,98470.0,0.61460553]
[1763060163929,0.09916915,98502.0,98477.0,0.20309235]
[1763060164129,0.09916915,98502.0,98471.0,0.323]
[1763060164130,0.09816915,98502.0,98471.0,0.323]
[1763060164332,0.09916915,98502.0,98477.0,0.20309187]
[1763060164554,0.09916915,98502.0,98477.0,0.2030912]
[1763060164775,0.09916915,98502.0,98490.0,0.60398358]
[1763060164776,0.002,98502.0,98490.0,0.60398358]
[1763060164998,0.001,98502.0,98500.0,0.20304439]
[1763060165211,0.001,98502.0,98500.0,0.27585222]
[1763060165411,0.002,98502.0,98501.0,0.323]
[1763060165653,0.002,98502.0,98493.0,0.09816915]
[1763060165654,0.001,98502.0,98493.0,0.09816915]
[1763060165855,0.14345,98519.0,98494.0,0.07294286]
[1763060166016,0.001,98502.0,98493.0,0.07294286]
[1763060166173,0.001,98502.0,98494.0,0.00046658]
[1763060166381,0.09805,98508.0,98494.0,0.00046658]
[1763060166581,0.09816915,98510.0,98494.0,0.00046658]
[1763060166838,0.09816915,98525.0,98500.0,0.60398358]
[1763060167051,0.09816915,98525.0,98509.0,0.60398358]
[1763060167269,0.09816915,98525.0,98501.0,0.39594286]
[1763060167270,0.04929,98533.0,98510.0,0.60398358]
[1763060168228,0.01592561,98532.0,98510.0,0.60398358]
[1763060168862,0.01592561,98532.0,98505.0,0.39594286]
[1763060168863,0.01592561,98532.0,98511.0,0.09816915]
[1763060169061,0.01592561,98532.0,98522.0,0.60298358]
[1763060169306,0.01592561,98532.0,98514.0,0.07294286]
[1763060169516,0.14669915,98548.0,98520.0,0.58520358]
[1763060169729,0.01592416,98544.0,98520.0,0.58520358]
[1763060169944,0.001,98532.0,98513.0,0.07294286]
[1763060170101,0.06341,98514.0,98501.0,0.07294286]
[1763060170279,0.06341,98513.0,98494.0,0.00046658]
[1763060170480,0.09816915,98503.0,98494.0,0.00046658]
[1763060170700,0.04929,98495.0,98494.0,0.00046658]
[1763060170896,0.1127,98495.0,98494.0,0.00046658]
[1763060171118,0.04929,98495.0,98494.0,0.00046658]
[1763060171327,0.09816915,98503.0,98494.0,0.00046658]
[1763060171576,0.09816915,98518.0,98494.0,0.00046658]
[1763060171801,0.09816915,98518.0,98500.0,0.80702834]
[1763060172019,0.24474915,98548.0,98508.0,0.60398358]
[1763060172323,0.24474915,98548.0,98509.0,0.323]
[1763060172492,0.24474915,98548.0,98520.0,0.60398358]
[1763060172716,0.09805,98537.0,98506.0,0.07294286]
[1763060172964,0.2,98540.0,98500.0,0.67692644]
[1763060172965,0.09805,98532.0,98500.0,0.67692644]
[1763060173160,0.09805,98532.0,98497.0,0.323]
[1763060173365,0.09805,98532.0,98496.0,0.09816915]
[1763060173366,0.2,98530.0,98496.0,0.09816915]
[1763060173781,0.09816915,98518.0,98496.0,0.09816915]
[1763060174344,0.09816915,98518.0,98494.0,0.00046658]
[1763060174541,0.09916915,98533.0,98500.0,0.61413586]
[1763060174720,0.09816915,98518.0,98495.0,0.07294286]
[1763060174929,0.09816915,98518.0,98494.0,0.00046658]
[1763060175184,0.09805,98517.0,98494.0,0.00046658]
[1763060175649,0.09816915,98518.0,98496.0,0.203053]
[1763060175859,0.09816915,98533.0,98501.0,0.20304217]
[1763060176067,0.09816915,98533.0,98502.0,0.20304067]
[1763060176271,0.09816915,98533.0,98510.0,0.60398358]
[1763060176493,0.09816915,98533.0,98520.0,0.60398358]
[1763060176695,0.00068314,98522.0,98520.0,0.60398358]
[1763060176896,0.00068314,98522.0,98520.0,0.20200258]
[1763060177095,0.00068314,98522.0,98520.0,0.14100258]
[1763060177301,0.00068314,98522.0,98521.0,0.323]
[1763060177507,0.00068314,98522.0,98521.0,0.39594286]
[1763060177741,0.00068314,98522.0,98521.0,0.323]
[1763060179890,0.00068314,98522.0,98521.0,0.324]
[1763060180136,0.00168314,98522.0,98521.0,0.323]
[1763060180546,0.00068314,98522.0,98521.0,0.325]
[1763060180743,0.00068314,98522.0,98521.0,0.323]
[1763060180945,0.00168314,98522.0,98521.0,0.323]
[1763060181080,0.00168314,98522.0,98521.0,0.325]
[1763060181282,0.00168314,98522.0,98521.0,0.323]
[1763060181715,0.0002,98550.0,98540.0,0.20296162]
[1763060181960,0.0002,98550.0,98540.0,0.60398358]
[1763060182879,0.0003398,98550.0,98532.0,0.09816915]
[1763060183021,0.0003398,98550.0,98528.0,0.07275084]
[1763060183218,0.0003398,98550.0,98514.0,0.07275084]
[1763060183219,0.04929,98533.0,98514.0,0.07275084]
[1763060183424,0.19621915,98549.0,98512.0,0.323]
[1763060183623,0.19621915,98549.0,98520.0,0.60398358]
[1763060183851,0.19621915,98549.0,98540.0,0.001]
[1763060184023,0.09816915,98549.0,98540.0,0.001]
[1763060184224,0.09816915,98549.0,98520.0,0.60398358]
[1763060184426,0.09816915,98549.0,98521.0,0.0767]
[1763060184748,0.0003398,98550.0,98526.0,0.09816915]
[1763060184951,0.0003398,98550.0,98530.0,0.60398358]
[1763060185163,0.09816915,98549.0,98530.0,0.60398358]
[1763060185356,0.0003398,98550.0,98530.0,0.60398358]
[1763060185539,0.0003398,98550.0,98521.0,0.0767]
[1763060185540,0.04929,98531.0,98521.0,0.0767]
[1763060185741,0.04929,98531.0,98507.0,0.07275084]
[1763060185924,0.04929,98531.0,98511.0,0.09816915]
[1763060186780,0.09816915,98530.0,98501.0,0.07275084]
[1763060186988,0.09816915,98530.0,98510.0,0.60398358]
[1763060187227,0.04929,98531.0,98511.0,0.10016915]
[1763060188202,0.09816915,98530.0,98511.0,0.002]
[1763060188447,0.04929,98512.0,98511.0,0.002]
[1763060188656,0.1127,98512.0,98511.0,0.002]
[1763060189559,0.1127,98512.0,98481.0,0.30125289]
[1763060189780,0.1137,98512.0,98481.0,0.09816915]
[1763060190000,0.1137,98512.0,98481.0,0.09863573]
[1763060190217,0.1137,98512.0,98490.0,0.60398358]
[1763060190421,0.05029,98512.0,98491.0,0.20306362]
[1763060190600,0.05029,98512.0,98491.0,0.20306348]
[1763060190954,0.05029,98512.0,98490.0,0.60398358]
[1763060190955,0.001,98512.0,98498.0,0.20304873]
[1763060191403,0.00071758,98512.0,98500.0,0.88604587]
[1763060191730,0.09816915,98530.0,98510.0,0.2030232]
[1763060191850,0.09007,98543.0,98511.0,0.20302301]
[1763060192044,0.0002,98550.0,98511.0,0.42116915]
[1763060192247,0.09007,98548.0,98511.0,0.323]
[1763060192453,0.09007,98548.0,98517.0,0.20301033]
[1763060192651,0.09007,98548.0,98520.0,0.88604587]
[1763060193065,0.0902098,98548.0,98521.0,0.20300151]
[1763060193264,0.0902098,98548.0,98522.0,0.2029986]
[1763060193470,0.0011398,98548.0,98520.0,0.88604587]
[1763060193960,0.0011398,98548.0,98530.0,0.88604587]
[1763060194169,0.0011398,98548.0,98547.0,0.20294884]
[1763060194322,0.0011398,98548.0,98547.0,0.52594884]
[1763060194521,0.0011398,98548.0,98547.0,0.60306058]
[1763060194723,0.0001398,98548.0,98547.0,0.323]
[1763060194924,0.0001398,98548.0,98541.0,0.09816915]
[1763060194925,0.0001398,98548.0,98541.0,0.07280618]
[1763060195165,0.0001398,98548.0,98542.0,0.42116915]
[1763060195404,0.0001398,98548.0,98543.0,0.09816915]
[1763060195821,0.0001398,98548.0,98542.0,0.323]
[1763060195953,0.0011398,98548.0,98547.0,0.001]
[1763060196395,0.0001398,98548.0,98538.0,0.88604587]
[1763060196595,0.0001398,98548.0,98543.0,0.002]
[1763060197029,0.0001398,98548.0,98541.0,0.09816915]
[1763060197157,0.0001398,98548.0,98547.0,0.002]
[1763060197549,0.0001398,98548.0,98541.0,0.09816915]
[1763060197990,0.0001398,98548.0,98538.0,0.88604587]
[1763060198164,0.0001398,98548.0,98542.0,0.09816915]
[1763060198566,0.0001398,98548.0,98542.0,0.05816915]
[1763060198773,0.0001398,98548.0,98543.0,0.002]
[1763060198994,0.0001398,98548.0,98542.0,0.05816915]
[1763060199374,0.0001398,98548.0,98547.0,0.323]
[1763060199778,0.0001398,98548.0,98547.0,0.39580618]
[1763060199994,0.0001398,98548.0,98547.0,0.36641874]
[1763060200198,0.0002,98550.0,98549.0,0.36641874]
[1763060200405,0.0002,98570.0,98569.0,0.56932228]
[1763060202297,0.0012,98570.0,98569.0,0.56932228]
[1763060202500,0.0002,98580.0,98568.0,0.09816915]
[1763060202785,0.00033975,98580.0,98571.0,0.323]
[1763060202962,0.00033975,98580.0,98579.0,0.323]
[1763060204095,0.00033975,98580.0,98577.0,0.323]
[1763060205085,0.00033975,98580.0,98575.0,0.52588959]
[1763060205249,0.00133975,98580.0,98579.0,0.20388296]
[1763060205450,0.00133975,98580.0,98579.0,0.20688296]
[1763060205654,0.00033975,98580.0,98579.0,0.12688296]
[1763060205969,0.00133975,98580.0,98577.0,0.005]
[1763060206376,0.00033975,98580.0,98573.0,0.323]
[1763060206744,0.00033975,98580.0,98572.0,0.20289544]
[1763060206745,0.00033975,98580.0,98579.0,0.326]
[1763060206917,0.00033975,98580.0,98579.0,0.325]
[1763060206918,0.00133975,98580.0,98579.0,0.325]
[1763060207362,0.00133975,98580.0,98579.0,0.002]
[1763060208269,0.00133975,98580.0,98577.0,0.003]
[1763060208270,0.00033975,98580.0,98577.0,0.003]
[1763060208383,0.00133975,98580.0,98577.0,0.003]
[1763060208583,0.00133975,98580.0,98573.0,0.001]
[1763060208878,0.00133975,98580.0,98572.0,0.0767]
[1763060208879,0.00033975,98580.0,98579.0,0.002]
[1763060209345,0.00033975,98580.0,98579.0,0.001]
[1763060209558,0.00033975,98580.0,98579.0,0.324]
[1763060210254,0.00033975,98580.0,98579.0,0.52888296]
[1763060210928,0.00033975,98580.0,98579.0,0.60058296]
[1763060211429,0.0002,98610.0,98595.0,0.20285004]
[1763060211667,0.0002,98610.0,98609.0,0.20282124]
[1763060211873,0.00033973,98610.0,98609.0,0.20282124]
[1763060212076,0.00033973,98610.0,98609.0,0.28065255]
[1763060212281,0.00033973,98610.0,98609.0,0.29099483]
[1763060212507,0.00033973,98610.0,98609.0,0.08817359]
[1763060212965,0.00033973,98610.0,98609.0,0.09816915]
[1763060213173,0.00033973,98610.0,98609.0,0.0745538]
[1763060213385,0.00133973,98610.0,98609.0,0.004]
[1763060214560,0.00033973,98610.0,98606.0,0.07781846]
[1763060215030,0.00033973,98610.0,98609.0,0.003]
[1763060215270,0.00033973,98610.0,98609.0,0.001]
[1763060215508,0.00033973,98610.0,98609.0,0.002]
[1763060215760,0.00033973,98610.0,98609.0,0.001]
[1763060216173,0.00033973,98610.0,98606.0,0.001]
[1763060216382,0.00033973,98610.0,98591.0,0.07528235]
[1763060216589,0.00033973,98610.0,98609.0,0.001]
[1763060218724,0.00033973,98610.0,98609.0,0.002]
[1763060220074,0.00033973,98610.0,98591.0,0.10080301]
[1763060220532,0.04971,98609.0,98592.0,0.02358]